bitfinex-derivatives/quotes_SOLF0:USTF0_20241029
["timestamp","ask_amount","ask_price","bid_price","bid_amount"]
[1730208766767,4.64,178.78,178.69,9.41278987]
[1730208767070,4.64,178.78,178.71,9.41278987]
[1730208767671,4.64,178.78,178.69,9.41278987]
[1730208768271,2.7986,178.76,178.7,2.7993]
[1730208768580,9.41278987,178.76,178.65,3.7547]
[1730208768773,2.7991,178.73,178.69,2.7995]
[1730208768970,7.4391,178.73,178.69,2.7995]
[1730208770669,4.64,178.73,178.65,3.7547]
[1730208770865,15.05974104,178.8,178.65,3.7547]
[1730208771073,4.64,178.79,178.67,15.05974104]
[1730208771277,19.69974104,178.79,178.65,3.7547]
[1730208771680,2.7991,178.73,178.68,2.7998]
[1730208771875,4.64,178.72,178.65,3.7547]
[1730208772180,4.64,178.72,178.71,2.7993]
[1730208772381,18.76304104,178.82,178.67,15.05974104]
[1730208772582,4.64,178.81,178.67,15.05974104]
[1730208773181,2.7986,178.76,178.72,2.7991]
[1730208773384,7.4386,178.76,178.72,2.7991]
[1730208775086,2.799,178.73,178.7,2.7995]
[1730208775281,4.64,178.76,178.67,15.05974104]
[1730208775593,4.64,178.76,178.65,3.7547]
[1730208776179,2.7991,178.73,178.68,2.7997]
[1730208776476,4.64,178.72,178.6,4.64]
[1730208776784,2.7998,178.68,178.64,2.8003]
[1730208776983,4.64,178.72,178.59,1.2659]
[1730208777587,2.7997,178.69,178.59,1.2659]
[1730208777783,2.7997,178.69,178.59,5.9059]
[1730208778088,2.7998,178.68,178.64,2.8003]
[1730208778993,2.7998,178.68,178.59,5.9059]
[1730208779193,2.7998,178.68,178.65,2.8003]
[1730208779497,2.7998,178.68,178.59,5.9059]
[1730208780182,19.69974104,178.72,178.59,5.9059]
[1730208780586,19.69974104,178.72,178.62,2.8006]
[1730208780788,2.8003,178.66,178.59,1.2659]
[1730208780983,4.64,178.66,178.59,1.2659]
[1730208781190,4.64,178.66,178.61,2.8008]
[1730208781380,4.64,178.66,178.59,1.2659]
[1730208781381,7.4403,178.66,178.59,1.2659]
[1730208781886,7.4403,178.66,178.64,2.8003]
[1730208781887,4.64,178.66,178.64,2.8003]
[1730208782088,15.05974104,178.72,178.59,1.2659]
[1730208782284,4.64,178.71,178.59,1.2659]
[1730208782485,4.64,178.71,178.59,5.9059]
[1730208782684,15.05974104,178.63,178.45,346.79922475]
[1730208782886,15.05974104,178.63,178.49,1.2399]
[1730208782887,4.64,178.62,178.49,1.2399]
[1730208783090,2.8009,178.61,178.49,1.2399]
[1730208783285,4.64,178.6,178.53,2.8021]
[1730208783483,4.64,178.6,178.49,1.2399]
[1730208783889,4.64,178.6,178.57,2.8014]
[1730208784083,4.64,178.6,178.52,15.05974104]
[1730208784491,4.64,178.6,178.49,16.29964104]
[1730208784981,2.8014,178.58,178.53,2.802]
[1730208785293,4.64,178.6,178.49,1.2399]
[1730208785294,19.69974104,178.6,178.49,1.2399]
[1730208785683,2.8015,178.57,178.51,2.8023]
[1730208785893,4.64,178.56,178.49,1.2399]
[1730208786693,4.64,178.56,178.52,2.8022]
[1730208786880,15.05974104,178.64,178.49,1.2399]
[1730208787088,4.64,178.63,178.49,16.29964104]
[1730208787282,2.8014,178.58,178.49,16.29964104]
[1730208787487,4.64,178.58,178.49,16.29964104]
[1730208787689,2.8016,178.57,178.52,2.8022]
[1730208787895,4.64,178.58,178.49,16.29964104]
[1730208788094,4.64,178.6,178.52,15.05974104]
[1730208788297,4.64,178.6,178.56,2.8016]
[1730208788490,4.64,178.61,178.52,15.05974104]
[1730208788692,4.64,178.61,178.53,1.2108]
[1730208788887,4.64,178.67,178.55,15.05974104]
[1730208789095,4.64,178.67,178.55,19.69974104]
[1730208789393,2.8004,178.65,178.59,2.8011]
[1730208789603,2.8004,178.65,178.55,19.69974104]
[1730208789995,2.8004,178.65,178.6,2.801]
[1730208790204,2.8006,178.63,178.55,19.69974104]
[1730208790702,4.64,178.67,178.6,2.801]
[1730208790895,2.8001,178.66,178.55,19.69974104]
[1730208791293,2.8001,178.66,178.61,2.8008]
[1730208792200,2.8003,178.65,178.61,2.8008]
[1730208792400,4.64,178.67,178.54,1.2402]
[1730208792603,15.05974104,178.66,178.54,1.2402]
[1730208793100,2.8008,178.62,178.58,2.8013]
[1730208793301,4.64,178.63,178.54,1.2402]
[1730208793992,7.4407,178.63,178.56,2.8016]
[1730208794192,7.4407,178.63,178.54,1.2402]
[1730208794500,19.69974104,178.63,178.54,1.2402]
[1730208794695,19.69974104,178.63,178.48,15.05974104]
[1730208795005,19.69974104,178.63,178.5,4.64]
[1730208795309,15.05974104,178.6,178.49,3.7354]
[1730208795695,2.8016,178.57,178.53,2.8021]
[1730208795996,7.5216,178.57,178.53,2.8021]
[1730208796199,2.802,178.55,178.5,2.8025]
[1730208796503,4.72,178.57,178.49,3.7354]
[1730208796908,4.72,178.57,178.53,2.802]
[1730208797595,7.5215,178.57,178.53,2.802]
[1730208797798,4.72,178.57,178.49,3.7354]
[1730208798700,7.5216,178.57,178.49,3.7354]
[1730208799090,7.5216,178.57,178.53,2.802]
[1730208799289,2.8012,178.59,178.49,3.7354]
[1730208799597,4.72,178.6,178.49,3.7354]
[1730208799807,15.05974104,178.66,178.51,15.05974104]
[1730208800106,2.8007,178.62,178.51,19.77974104]
[1730208800297,4.72,178.65,178.51,19.77974104]
[1730208800793,15.05974104,178.63,178.49,3.7354]
[1730208800991,2.8017,178.56,178.49,3.7354]
[1730208801300,4.72,178.57,178.49,3.7354]
[1730208802592,4.72,178.57,178.53,2.802]
[1730208802791,4.72,178.57,178.49,3.7354]
[1730208803098,4.72,178.57,178.54,2.8019]
[1730208804697,4.72,178.57,178.49,3.7354]
[1730208804698,4.72,178.57,178.51,2.8024]
[1730208805004,4.72,178.57,178.49,3.7354]
[1730208805005,4.72,178.58,178.49,3.7354]
[1730208805200,4.72,178.59,178.49,3.7354]
[1730208805704,7.5213,178.59,178.49,3.7354]
[1730208806807,7.5213,178.59,178.55,2.8017]
[1730208808805,7.5213,178.59,178.56,2.8016]
[1730208809614,4.72,178.59,178.49,3.7354]
[1730208809809,4.72,178.59,178.49,2.4634]
[1730208810817,7.5213,178.59,178.52,2.8023]
[1730208811003,4.72,178.59,178.49,2.4634]
[1730208811206,4.72,178.59,178.52,9.4197266]
[1730208811416,4.72,178.59,178.54,2.802]
[1730208811605,4.72,178.59,178.52,9.4197266]
[1730208812013,4.72,178.59,178.54,2.802]
[1730208812911,9.4197266,178.6,178.49,2.4634]
[1730208813111,4.72,178.58,178.52,2.8023]
[1730208813413,2.8018,178.56,178.52,2.8023]
[1730208813610,4.72,178.58,178.52,2.8023]
[1730208813810,4.72,178.58,178.49,2.4634]
[1730208814014,2.8018,178.56,178.49,2.4634]
[1730208814219,4.72,178.58,178.47,1.2799]
[1730208814517,4.72,178.58,178.48,9.4197266]
[1730208814717,2.8018,178.56,178.48,9.4197266]
[1730208815214,4.72,178.58,178.48,9.4197266]
[1730208815416,4.72,178.58,178.5,9.4197266]
[1730208816104,4.72,178.58,178.48,9.4197266]
[1730208816512,2.8019,178.55,178.51,2.8023]
[1730208816710,4.72,178.58,178.48,9.4197266]
[1730208816908,4.72,178.58,178.47,1.2799]
[1730208816909,4.72,178.58,178.56,2.8015]
[1730208817111,4.72,178.58,178.5,9.4197266]
[1730208817623,2.8016,178.57,178.53,2.802]
[1730208817813,4.72,178.58,178.5,9.4197266]
[1730208818121,4.72,178.58,178.57,2.8015]
[1730208818315,4.72,178.58,178.5,9.4197266]
[1730208818916,4.72,178.58,178.52,2.8022]
[1730208819118,4.72,178.58,178.51,9.4197266]
[1730208819615,4.72,178.58,178.55,2.8018]
[1730208821218,7.5214,178.58,178.55,2.8018]
[1730208821521,4.72,178.65,178.54,9.4197266]
[1730208821721,2.8007,178.63,178.54,9.4197266]
[1730208822419,2.8007,178.63,178.6,2.801]
[1730208822623,4.72,178.63,178.54,9.4197266]
[1730208822821,4.72,178.63,178.55,1.2475]
[1730208823523,7.5206,178.63,178.57,2.8014]
[1730208823720,7.5206,178.63,178.55,1.2475]
[1730208824523,7.5206,178.63,178.59,2.8011]
[1730208825325,9.4197266,178.62,178.52,2.5139]
[1730208825534,9.4197266,178.62,178.5,1.2475]
[1730208825823,9.4197266,178.6,178.5,1.2475]
[1730208826123,2.802,178.54,178.49,9.4197266]
[1730208826312,4.72,178.56,178.47,2.507]
[1730208826514,4.72,178.55,178.5,2.8026]
[1730208826714,4.72,178.54,178.5,2.8026]
[1730208826927,4.72,178.55,178.5,2.8026]
[1730208827319,2.8021,178.54,178.5,2.8026]
[1730208827615,4.72,178.55,178.47,11.9267266]
[1730208828028,2.8023,178.53,178.47,11.9267266]
[1730208828326,2.8023,178.53,178.49,2.8026]
[1730208829221,2.802,178.54,178.47,11.9267266]
[1730208829413,2.802,178.54,178.5,2.8025]
[1730208830316,2.8021,178.54,178.49,2.8027]
[1730208830518,4.72,178.55,178.49,2.8027]
[1730208830722,4.72,178.55,178.47,10.6415266]
[1730208831127,7.5219,178.55,178.51,2.8024]
[1730208831329,7.5219,178.55,178.47,10.6415266]
[1730208831330,4.72,178.58,178.49,9.4197266]
[1730208831529,4.72,178.58,178.55,2.8017]
[1730208831831,4.72,178.58,178.49,9.4197266]
[1730208832025,7.5215,178.58,178.54,2.802]
[1730208833143,7.5215,178.58,178.49,9.4197266]
[1730208833144,4.72,178.58,178.48,1.273]
[1730208833348,4.72,178.58,178.48,10.6927266]
[1730208833349,2.8016,178.57,178.48,10.6927266]
[1730208833641,4.72,178.58,178.5,9.4197266]
[1730208833826,4.72,178.58,178.52,2.8022]
[1730208834139,4.72,178.58,178.5,9.4197266]
[1730208834542,4.72,178.58,178.55,2.8017]
[1730208834841,4.72,178.58,178.5,9.4197266]
[1730208835042,4.72,178.58,178.56,2.8016]
[1730208836140,4.72,178.58,178.5,9.4197266]
[1730208837338,7.5214,178.58,178.54,2.8018]
[1730208839144,2.8015,178.57,178.54,2.8018]
[1730208839452,4.72,178.58,178.5,9.4197266]
[1730208840037,7.5215,178.58,178.54,2.8019]
[1730208840241,4.72,178.58,178.5,9.4197266]
[1730208841342,7.5215,178.58,178.54,2.8019]
[1730208841543,7.5215,178.58,178.5,9.4197266]
[1730208841740,4.72,178.6,178.53,9.4197266]
[1730208842042,4.72,178.6,178.56,2.8016]
[1730208842648,2.8013,178.59,178.56,2.8016]
[1730208843046,4.72,178.6,178.53,9.4197266]
[1730208843245,2.8016,178.57,178.54,2.8019]
[1730208844249,4.72,178.6,178.53,9.4197266]
[1730208844942,7.5211,178.6,178.53,9.4197266]
[1730208845340,4.72,178.6,178.58,2.8013]
[1730208845541,1.2454,178.66,178.55,9.4197266]
[1730208845754,4.72,178.62,178.55,9.4197266]
[1730208846253,4.72,178.63,178.55,9.4197266]
[1730208846545,7.5206,178.63,178.55,9.4197266]
[1730208846945,4.72,178.63,178.55,9.4197266]
[1730208847147,2.8008,178.62,178.55,9.4197266]
[1730208847756,1.2115,178.67,178.58,9.4197266]
[1730208847949,4.72,178.66,178.58,9.4197266]
[1730208848255,4.72,178.66,178.6,9.4197266]
[1730208848451,4.72,178.66,178.57,2.4933]
[1730208848652,2.8009,178.61,178.58,2.8013]
[1730208849149,4.72,178.61,178.52,9.4197266]
[1730208849758,2.8015,178.57,178.54,2.8019]
[1730208850253,2.8015,178.57,178.51,11.9593266]
[1730208851052,2.8017,178.56,178.51,11.9593266]
[1730208851355,4.72,178.61,178.51,11.9593266]
[1730208851550,4.72,178.61,178.52,2.8023]
[1730208851745,2.8014,178.58,178.51,11.9593266]
[1730208852059,4.72,178.61,178.51,11.9593266]
[1730208852259,4.72,178.61,178.53,2.8021]
[1730208852650,9.4197266,178.6,178.49,14.1397266]
[1730208852957,8.771,178.66,178.57,9.4197266]
[1730208853156,5.9709,178.66,178.51,4.72]
[1730208853349,15.3906266,178.66,178.54,9.4197266]
[1730208853549,15.3906266,178.66,178.51,4.72]
[1730208853751,15.3906266,178.66,178.53,9.4197266]
[1730208853948,15.3906266,178.66,178.55,2.8018]
[1730208854254,15.3906266,178.66,178.46,3.7926]
[1730208854255,9.4197266,178.6,178.46,3.7926]
[1730208854460,5.9709,178.66,178.51,9.4197266]
[1730208854461,4.72,178.59,178.51,9.4197266]
[1730208854645,7.5212,178.59,178.51,9.4197266]
[1730208855051,4.72,178.59,178.55,2.8017]
[1730208855251,4.72,178.59,178.45,4.86]
[1730208855452,4.72,178.59,178.49,9.4197266]
[1730208855757,2.8016,178.57,178.53,2.802]
[1730208855952,2.8016,178.57,178.49,2.09751584]
[1730208856152,2.8014,178.58,178.54,2.8019]
[1730208856352,4.72,178.59,178.46,4.86]
[1730208856558,4.72,178.59,178.5,9.4197266]
[1730208856752,7.6614,178.58,178.54,2.8019]
[1730208857054,4.86,178.6,178.53,9.4197266]
[1730208857255,1.2509,178.66,178.58,2.8013]
[1730208857256,2.8009,178.62,178.58,2.8013]
[1730208857555,10.6706266,178.66,178.53,9.4197266]
[1730208857556,4.86,178.61,178.53,9.4197266]
[1730208857859,4.86,178.61,178.58,2.8012]
[1730208858363,4.86,178.61,178.53,9.4197266]
[1730208858570,7.661,178.61,178.57,2.8015]
[1730208858755,4.86,178.61,178.53,9.4197266]
[1730208859058,2.8013,178.59,178.55,2.8017]
[1730208859564,4.86,178.61,178.53,9.4197266]
[1730208860057,4.86,178.61,178.54,9.99650078]
[1730208860252,2.8011,178.6,178.56,2.8016]
[1730208860859,2.8013,178.59,178.55,2.8017]
[1730208861064,2.8013,178.59,178.53,9.4197266]
[1730208861764,2.8011,178.6,178.56,2.8015]
[1730208862864,2.8012,178.59,178.56,2.8015]
[1730208863460,2.8012,178.59,178.53,9.4197266]
[1730208864056,2.8014,178.58,178.53,9.4197266]
[1730208864363,4.86,178.61,178.53,9.4197266]
[1730208865358,2.8012,178.59,178.56,2.8017]
[1730208868560,2.8012,178.59,178.57,2.8015]
[1730208868862,2.8012,178.59,178.53,9.4197266]
[1730208869466,2.8012,178.59,178.56,2.8016]
[1730208869664,4.86,178.61,178.55,9.4197266]
[1730208869867,7.6609,178.61,178.55,9.4197266]
[1730208870263,2.8009,178.61,178.58,2.8013]
[1730208870458,4.86,178.62,178.55,9.4197266]
[1730208870765,4.86,178.62,178.57,2.8015]
[1730208870964,4.86,178.62,178.55,9.4197266]
[1730208871461,4.86,178.65,178.58,9.4197266]
[1730208871961,2.8006,178.64,178.58,9.4197266]
[1730208872173,4.86,178.65,178.58,9.4197266]
[1730208872564,4.86,178.65,178.6,2.801]
[1730208872762,4.86,178.65,178.58,9.4197266]
[1730208873166,2.8006,178.63,178.6,2.801]
[1730208873468,2.8006,178.63,178.58,9.4197266]
[1730208874259,4.86,178.65,178.55,9.4197266]
[1730208874570,2.801,178.61,178.58,2.8013]
[1730208875970,4.86,178.65,178.55,9.4197266]
[1730208876177,2.8006,178.63,178.59,2.8011]
[1730208876366,2.8006,178.63,178.58,9.4197266]
[1730208876562,4.86,178.65,178.58,9.4197266]
[1730208877575,2.8006,178.63,178.6,2.8009]
[1730208877769,4.86,178.65,178.58,9.4197266]
[1730208878563,2.8005,178.64,178.6,2.8009]
[1730208880070,2.8015,178.58,178.55,2.8017]
[1730208880271,14.2797266,178.65,178.51,3.7798]
[1730208880476,1.2704,178.64,178.52,9.4197266]
[1730208880778,2.8013,178.59,178.56,2.8016]
[1730208882073,2.8013,178.59,178.55,6.02885162]
[1730208882376,2.8014,178.58,178.55,8.83065162]
[1730208882764,6.02885162,178.59,178.53,2.8021]
[1730208883078,4.86,178.61,178.53,2.8021]
[1730208883369,2.8018,178.56,178.52,2.8022]
[1730208883575,4.86,178.61,178.51,13.2012898]
[1730208883776,2.8014,178.58,178.54,2.802]
[1730208884171,4.86,178.61,178.51,13.2012898]
[1730208884372,2.8013,178.59,178.55,2.8018]
[1730208884579,4.86,178.61,178.55,2.8018]
[1730208885370,2.8014,178.58,178.55,2.8018]
[1730208886477,2.8013,178.59,178.55,2.8018]
[1730208886677,4.86,178.61,178.56,2.8017]
[1730208887191,2.8011,178.6,178.56,2.8016]
[1730208887371,2.8011,178.6,178.53,9.4214898]
[1730208887372,4.86,178.61,178.53,9.4214898]
[1730208887878,2.8015,178.58,178.55,2.8017]
[1730208888976,2.8011,178.6,178.56,2.8015]
[1730208889375,4.86,178.61,178.55,9.4214898]
[1730208890071,2.8012,178.59,178.56,2.8016]
[1730208892192,2.8012,178.59,178.57,2.8015]
[1730208892382,2.8011,178.6,178.57,2.8015]
[1730208892779,4.86,178.61,178.58,2.8013]
[1730208893474,1.2704,178.64,178.59,2.8011]
[1730208893674,4.78,178.63,178.59,2.8011]
[1730208894188,4.78,178.63,178.55,9.4214898]
[1730208894587,2.8008,178.62,178.59,2.8011]
[1730208895785,2.801,178.61,178.58,2.8013]
[1730208895986,2.801,178.61,178.55,9.4214898]
[1730208896180,4.78,178.63,178.55,9.4214898]
[1730208896579,4.78,178.63,178.59,2.8012]
[1730208896779,4.78,178.63,178.55,9.4214898]
[1730208898281,2.801,178.61,178.57,2.8014]
[1730208898493,4.78,178.62,178.55,9.4214898]
[1730208898886,7.5808,178.62,178.59,2.8011]
[1730208899482,4.78,178.62,178.59,2.8011]
[1730208899688,2.8009,178.61,178.59,2.8011]
[1730208900397,7.5807,178.63,178.6,2.8009]
[1730208900595,4.78,178.65,178.58,9.4214898]
[1730208900783,7.5804,178.65,178.62,2.8007]
[1730208901092,4.78,178.65,178.58,9.4214898]
[1730208901299,1.2757,178.68,178.58,9.4214898]
[1730208901300,4.78,178.67,178.58,9.4214898]
[1730208901887,2.8007,178.63,178.59,2.8012]
[1730208902198,16.77313085,178.67,178.56,9.4214898]
[1730208902385,6.73443244,178.66,178.56,9.4214898]
[1730208902585,2.57164105,178.66,178.58,2.8013]
[1730208902785,16.77313085,178.67,178.58,2.8013]
[1730208903192,16.77313085,178.67,178.56,9.4214898]
[1730208903496,2.801,178.61,178.57,2.8015]
[1730208903685,4.78,178.61,178.56,9.4214898]
[1730208903883,2.8011,178.6,178.57,2.8015]
[1730208904492,4.78,178.61,178.58,2.8013]
[1730208904694,4.78,178.61,178.56,9.4214898]
[1730208904892,4.78,178.61,178.54,9.4214898]
[1730208905191,2.8011,178.6,178.57,6.02743765]
[1730208905497,4.78,178.61,178.57,6.02743765]
[1730208905694,2.8013,178.59,178.56,6.02743765]
[1730208906183,2.8013,178.59,178.56,8.82903765]
[1730208906989,2.8025,178.51,178.49,6.02743765]
[1730208907388,4.78,178.52,178.49,6.02743765]
[1730208907895,7.5824,178.52,178.49,6.02743765]
[1730208908287,4.78,178.52,178.5,6.02743765]
[1730208908493,4.78,178.55,178.5,6.02743765]
[1730208908692,4.78,178.55,178.52,6.02743765]
[1730208909099,10.80743765,178.55,178.49,6.02743765]
[1730208909391,4.78,178.55,178.51,6.02743765]
[1730208909995,2.8022,178.53,178.51,6.02743765]
[1730208910195,4.78,178.55,178.51,6.02743765]
[1730208910394,4.78,178.55,178.44,4.78]
[1730208910595,6.02743765,178.54,178.43,2.4705]
[1730208910795,4.78,178.55,178.47,6.02743765]
[1730208910796,6.02743765,178.53,178.47,6.02743765]
[1730208911188,2.8028,178.49,178.47,6.02743765]
[1730208911393,6.02743765,178.53,178.43,2.4705]
[1730208911700,6.02743765,178.53,178.47,6.02743765]
[1730208911701,2.8031,178.48,178.47,6.02743765]
[1730208912091,3.8688,178.58,178.47,6.02743765]
[1730208912401,6.02743765,178.56,178.5,6.02743765]
[1730208912704,2.8025,178.51,178.5,6.02743765]
[1730208912903,4.78,178.53,178.51,6.02743765]
[1730208913293,6.02743765,178.56,178.51,6.02743765]
[1730208913595,4.78,178.55,178.51,6.02743765]
[1730208914193,3.8688,178.58,178.51,6.02743765]
[1730208914393,4.78,178.57,178.54,6.02743765]
[1730208914593,4.78,178.58,178.54,6.02743765]
[1730208915193,2.8017,178.56,178.54,6.02743765]
[1730208915391,3.7476,178.63,178.55,6.02743765]
[1730208915597,4.78,178.62,178.58,6.02743765]
[1730208916504,2.8012,178.59,178.58,6.02743765]
[1730208916700,1.269,178.63,178.58,6.02743765]
[1730208916907,4.7,178.62,178.59,6.02743765]
[1730208917207,2.801,178.6,178.59,6.02743765]
[1730208917711,4.7,178.62,178.59,6.02743765]
[1730208917912,7.5007,178.62,178.61,6.02743765]
[1730208918405,2.8007,178.62,178.61,6.02743765]
[1730208920199,2.8016,178.57,178.51,2.5518]
[1730208920411,6.02743765,178.61,178.55,6.02743765]
[1730208920607,6.02743765,178.6,178.55,6.02743765]
[1730208920805,2.8018,178.55,178.54,6.02743765]
[1730208921503,4.7,178.59,178.54,6.02743765]
[1730208921801,2.8018,178.56,178.55,6.02743765]
[1730208922002,6.02743765,178.58,178.53,6.02743765]
[1730208922208,6.02743765,178.58,178.52,6.02743765]
[1730208922405,2.8022,178.53,178.52,6.02743765]
[1730208922804,6.02743765,178.58,178.46,3.7168]
[1730208923001,2.8023,178.53,178.51,6.02743765]
[1730208923200,6.02743765,178.58,178.51,6.02743765]
[1730208923403,2.8018,178.55,178.53,8.82953765]
[1730208923602,6.02743765,178.58,178.53,6.02743765]
[1730208924402,6.02743765,178.58,178.46,3.7168]
[1730208924403,2.8022,178.53,178.52,6.02743765]
[1730208925412,2.802,178.54,178.52,6.02743765]
[1730208926114,6.02743765,178.58,178.52,6.02743765]
[1730208927611,6.02743765,178.58,178.53,6.02743765]
[1730208927808,6.02743765,178.58,178.46,3.7168]
[1730208928118,2.8025,178.51,178.48,2.8029]
[1730208928311,2.8025,178.51,178.5,6.02743765]
[1730208928612,4.7,178.54,178.5,6.02743765]
[1730208929218,2.8021,178.53,178.52,6.02743765]
[1730208930311,4.7,178.55,178.51,6.02743765]
[1730208930612,2.8023,178.52,178.51,6.02743765]
[1730208931718,4.7,178.55,178.51,6.02743765]
[1730208932518,2.8022,178.53,178.51,6.02743765]
[1730208932919,1.2721,178.6,178.52,6.02743765]
[1730208933125,7.5013,178.59,178.54,6.02743765]
[1730208933322,10.72743765,178.59,178.54,6.02743765]
[1730208934010,2.8018,178.55,178.53,6.02743765]
[1730208934414,2.8018,178.55,178.53,8.82953765]
[1730208934617,2.8015,178.57,178.53,6.02743765]
[1730208935520,2.8015,178.57,178.54,2.802]
[1730208935910,2.8016,178.57,178.55,6.02743765]
[1730208936709,4.7,178.59,178.55,6.02743765]
[1730208937311,2.8016,178.57,178.55,6.02743765]
[1730208938115,4.7,178.59,178.55,6.02743765]
[1730208938311,2.802,178.54,178.53,6.02743765]
[1730208938726,6.02743765,178.58,178.53,6.02743765]
[1730208938928,2.8019,178.55,178.53,6.02743765]
[1730208939713,2.8018,178.56,178.53,8.82953765]
[1730208940924,2.8018,178.56,178.47,4.7]
[1730208940925,7.5014,178.58,178.55,6.02743765]
[1730208941314,4.7,178.58,178.55,6.02743765]
[1730208941626,4.7,178.58,178.56,2.8017]
[1730208941821,4.7,178.58,178.55,6.02743765]
[1730208942225,2.8015,178.57,178.55,8.82923765]
[1730208942423,4.7,178.58,178.55,6.02743765]
[1730208942935,7.5014,178.58,178.56,2.8017]
[1730208943415,4.7,178.58,178.55,6.02743765]
[1730208944026,7.5015,178.58,178.55,8.82913765]
[1730208944223,2.4298,178.67,178.57,6.02743765]
[1730208944433,10.72743765,178.66,178.6,6.02743765]
[1730208945022,2.8009,178.61,178.6,6.02743765]
[1730208945529,2.8009,178.62,178.6,6.02743765]
[1730208945727,4.7,178.63,178.6,6.02743765]
[1730208946431,2.8009,178.61,178.6,6.02743765]
[1730208947719,4.6,178.64,178.6,6.02743765]
[1730208947920,4.6,178.65,178.61,6.02743765]
[1730208948330,2.8006,178.63,178.61,6.02743765]
[1730208948525,4.6,178.65,178.62,6.02743765]
[1730208948735,4.6,178.65,178.61,6.02743765]
[1730208948924,2.8004,178.64,178.61,8.82833765]
[1730208949125,4.6,178.65,178.61,8.82833765]
[1730208949431,6.02743765,178.68,178.61,8.82833765]
[1730208949634,60.52,178.69,178.61,8.82833765]
[1730208949635,4.6,178.67,178.63,6.02743765]
[1730208950128,179.71304901,178.74,178.66,6.02743765]
[1730208950324,6.02743765,178.74,178.69,6.02743765]
[1730208950727,2.7995,178.71,178.69,6.02743765]
[1730208951226,4.6,178.75,178.7,6.02743765]
[1730208951424,4.6,178.75,178.72,6.02743765]
[1730208952437,8.47033765,178.77,178.72,6.02743765]
[1730208952438,6.02743765,178.78,178.72,6.02743765]
[1730208952621,4.6,178.78,178.72,6.02743765]
[1730208953025,2.799,178.74,178.71,2.7992]
[1730208953635,2.799,178.74,178.7,12.21036654]
[1730208954024,9.41096654,178.82,178.72,9.41096654]
[1730208954231,2.7987,178.76,178.73,2.799]
[1730208954635,2.7983,178.78,178.72,9.41096654]
[1730208954837,4.6,178.8,178.75,9.41096654]
[1730208955236,2.7982,178.79,178.75,9.41096654]
[1730208955435,4.6,178.8,178.75,12.20956654]
[1730208955736,4.6,178.8,178.75,9.41096654]
[1730208958046,2.7981,178.79,178.75,9.41096654]
[1730208958637,4.6,178.8,178.77,9.41096654]
[1730208958843,4.6,178.83,178.77,9.41096654]
[1730208959044,4.6,178.84,178.77,12.20916654]
[1730208959351,2.7977,178.82,178.77,9.41096654]
[1730208959651,1.1926,178.86,178.81,2.7976]
[1730208959846,4.6,178.85,178.81,2.7976]
[1730208960143,2.7973,178.84,178.82,9.41096654]
[1730208960335,4.6,178.88,178.82,12.20856654]
[1730208962258,4.6,178.91,178.85,9.41096654]
[1730208962546,2.7965,178.89,178.87,9.41096654]
[1730208962743,4.6,178.93,178.87,12.20766654]
[1730208963053,2.7962,178.92,178.87,12.20766654]
[1730208963349,4.6,178.94,178.89,12.20736654]
[1730208963737,2.7959,178.93,178.89,9.41096654]
[1730208963937,2.7959,178.93,178.9,2.7963]
[1730208964148,2.7958,178.94,178.92,9.41096654]
[1730208964348,4.58,178.96,178.92,9.41096654]
[1730208964743,2.7959,178.94,178.92,9.41096654]
[1730208965144,4.58,178.96,178.92,9.41096654]
[1730208965546,2.7957,178.95,178.92,9.41096654]